bitfinex/quotes_SOLUSD_20240625
["timestamp","ask_amount","ask_price","bid_price","bid_amount"]
[1719304767457,100.0,134.03,133.88,20.34]
[1719304768356,100.0,134.01,133.88,20.34]
[1719304768574,100.0,133.99,133.88,20.0]
[1719304768871,100.0,133.97,133.87,22.9308]
[1719304769086,107.77474718,134.03,133.87,22.9308]
[1719304769290,100.0,134.01,133.87,22.9308]
[1719304769452,0.34,134.0,133.87,22.9308]
[1719304769854,0.17,134.0,133.87,22.9308]
[1719304770065,0.17,134.0,133.88,0.34]
[1719304770456,20.0,134.02,133.88,0.34]
[1719304770674,0.17,134.01,133.88,20.34]
[1719304770975,100.0,134.03,133.9,16.0971]
[1719304771163,100.0,134.03,133.91,20.34]
[1719304771574,100.0,134.03,133.92,6.4014]
[1719304771776,100.0,134.06,133.93,0.34]
[1719304771979,20.0,134.05,133.93,20.34]
[1719304772359,100.0,134.07,133.94,15.2975]
[1719304772570,100.0,134.07,133.95,20.34]
[1719304772877,100.0,134.14,133.96,6.4889]
[1719304773067,100.0,134.13,133.97,20.34]
[1719304773266,100.0,134.09,133.97,20.34]
[1719304773861,100.0,134.06,133.96,6.4889]
[1719304774261,0.17,134.05,133.96,6.4889]
[1719304774489,200.0,134.03,133.96,6.4889]
[1719304774665,120.0,134.02,133.96,6.4889]
[1719304774869,0.34,134.01,133.96,6.4889]
[1719304775070,100.34,134.01,133.96,6.4889]
[1719304775282,100.34,134.01,133.94,15.2975]
[1719304775564,100.0,134.04,133.94,15.2975]
[1719304775810,0.34,134.03,133.94,15.2975]
[1719304775963,100.0,134.01,133.94,15.2975]
[1719304776385,0.34,134.0,133.94,15.2975]
[1719304776572,100.0,133.99,133.94,15.2975]
[1719304776769,0.34,133.98,133.92,6.3011]
[1719304776966,100.0,133.97,133.88,21.2182]
[1719304777171,20.34,133.96,133.88,21.2182]
[1719304777585,100.0,133.94,133.88,21.2182]
[1719304777787,0.17,133.93,133.88,21.2182]
[1719304778099,220.34,133.96,133.88,21.2182]
[1719304778277,120.34,133.96,133.88,21.2182]
[1719304779268,100.0,133.94,133.81,21.2504]
[1719304779619,0.34,133.93,133.81,21.2504]
[1719304780025,100.0,133.97,133.81,21.2504]
[1719304780197,0.34,133.96,133.82,20.0]
[1719304780516,0.17,133.97,133.82,20.0]
[1719304780897,20.17,133.98,133.82,20.0]
[1719304781099,120.17,133.98,133.83,45.34]
[1719304781305,120.17,133.98,133.84,20.0]
[1719304781502,20.0,133.98,133.85,45.34]
[1719304781796,20.0,133.99,133.86,20.0]
[1719304781996,20.0,133.99,133.87,45.34]
[1719304782201,100.0,134.0,133.88,6.4921]
[1719304782398,100.0,134.0,133.89,45.34]
[1719304782917,200.0,134.03,133.9,36.1223]
[1719304783121,200.0,134.03,133.91,45.17]
[1719304783294,200.0,134.03,133.92,0.17]
[1719304785317,0.34,134.02,133.92,0.17]
[1719304785710,100.0,134.03,133.92,0.17]
[1719304787122,0.17,134.02,133.92,0.17]
[1719304787325,0.34,134.02,133.92,0.17]
[1719304787623,0.17,134.02,133.92,0.17]
[1719304787820,100.0,134.03,133.92,20.17]
[1719304788013,100.0,134.03,133.93,45.17]
[1719304788214,0.34,134.02,133.93,45.17]
[1719304788903,100.0,134.01,133.92,20.0]
[1719304789102,0.34,134.0,133.91,20.0]
[1719304789316,0.34,134.0,133.9,16.1223]
[1719304789508,100.0,133.99,133.9,16.1223]
[1719304790216,100.0,133.97,133.9,16.1223]
[1719304794215,100.0,133.95,133.9,16.1223]
[1719304794402,100.0,133.95,133.88,6.4921]
[1719304795004,200.0,133.93,133.84,6.3842]
[1719304795205,100.0,133.91,133.84,6.3842]
[1719304796416,0.34,133.92,133.84,6.3842]
[1719304801736,100.0,133.88,133.84,6.3842]
[1719304801942,100.0,133.89,133.84,6.3842]
[1719304802108,0.34,133.88,133.84,6.3842]
[1719304802515,0.34,133.88,133.81,15.4392]
[1719304803207,27.4676,133.92,133.81,15.4392]
[1719304803208,100.0,133.91,133.81,15.4392]
[1719304803413,20.17,133.9,133.81,15.4392]
[1719304803828,100.0,133.88,133.81,15.4392]
[1719304804411,120.17,133.9,133.81,15.4392]
[1719304804812,0.17,133.89,133.81,15.4392]
[1719304807149,100.0,133.88,133.81,15.4392]
[1719304807515,200.0,133.88,133.81,15.4392]
[1719304807709,0.34,133.87,133.81,15.4392]
[1719304809817,100.0,133.88,133.81,15.4392]
[1719304811345,100.0,133.86,133.81,15.4392]
[1719304811937,0.17,133.87,133.81,15.4392]
[1719304812136,0.34,133.87,133.81,15.4392]
[1719304812338,100.0,133.88,133.81,15.4392]
[1719304813142,0.34,133.89,133.81,15.4392]
[1719304813315,100.0,133.88,133.81,15.4392]
[1719304814824,0.34,133.89,133.81,15.4392]
[1719304815529,20.0,133.9,133.81,15.4392]
[1719304815840,100.0,133.92,133.82,0.34]
[1719304816845,207.4675,133.92,133.81,15.4392]
[1719304817041,0.17,133.91,133.82,0.17]
[1719304817345,0.34,133.91,133.81,15.4392]
[1719304817545,0.34,133.91,133.82,0.34]
[1719304818725,0.17,133.91,133.82,0.34]
[1719304818949,100.0,133.92,133.83,6.3157]
[1719304819146,0.17,133.91,133.83,6.3157]
[1719304819334,0.34,133.91,133.83,6.3157]
[1719304821444,209.68607749,133.97,133.84,35.9097]
[1719304821636,200.0,133.97,133.85,6.2418]
[1719304822436,100.0,133.95,133.85,6.2418]
[1719304823028,107.4656,133.95,133.85,6.0718]
[1719304823240,0.17,133.94,133.85,6.0718]
[1719304823440,100.0,133.92,133.85,6.0718]
[1719304826435,128.34,133.94,133.85,6.0718]
[1719304826631,20.0,133.93,133.85,6.0718]
[1719304827169,7.74854793,133.95,133.86,21.7335]
[1719304827359,100.0,133.98,133.87,0.17]
[1719304827649,100.0,133.96,133.87,0.17]
[1719304828051,100.0,133.98,133.87,0.17]
[1719304828464,100.0,133.98,133.87,22.7305]
[1719304828667,100.0,133.98,133.88,0.34]
[1719304829659,100.0,133.95,133.87,22.7305]
[1719304829957,100.0,133.93,133.87,22.7305]
[1719304830745,100.0,133.91,133.87,22.7305]
[1719304833240,100.0,133.89,133.84,6.5281]
[1719304834341,100.0,133.87,133.79,21.9386]
[1719304834646,0.34,133.9,133.79,21.9386]
[1719304834647,100.0,133.85,133.79,21.9386]
[1719304835955,20.0,133.84,133.79,21.9386]
[1719304837445,100.0,133.82,133.79,21.9386]
[1719304839960,20.0,133.84,133.79,21.9386]
[1719304840270,100.0,133.83,133.79,21.9386]
[1719304840450,20.0,133.82,133.79,21.9386]
[1719304841961,20.0,133.84,133.79,21.9386]
[1719304843260,100.0,133.83,133.79,21.9386]
[1719304845561,100.0,133.83,133.7,384.7]
[1719304845761,100.0,133.83,133.68,256.8]
[1719304845762,100.0,133.8,133.71,22.661]
[1719304845967,20.0,133.79,133.71,22.661]
[1719304846375,100.0,133.8,133.71,22.661]
[1719304847876,100.0,133.82,133.72,22.0307]
[1719304848063,20.0,133.81,133.72,22.0307]
[1719304848464,20.0,133.83,133.72,22.0307]
[1719304848865,100.0,133.82,133.73,0.34]
[1719304851962,20.0,133.83,133.73,0.34]
[1719304852559,100.0,133.81,133.72,22.0307]
[1719304853964,100.0,133.81,133.73,0.34]
[1719304854987,120.0,133.83,133.74,15.7824]
[1719304855192,127.4721,133.83,133.74,15.7824]
[1719304855688,120.0,133.83,133.75,0.34]
[1719304855875,127.4721,133.83,133.75,0.34]
[1719304856073,127.4721,133.83,133.74,15.7824]
[1719304856074,100.0,133.81,133.74,15.7824]
[1719304856276,20.0,133.8,133.74,15.7824]
[1719304856462,100.0,133.81,133.74,15.7824]
[1719304858882,28.21,133.82,133.74,15.7824]
[1719304859068,28.21,133.82,133.75,0.34]
[1719304859582,28.21,133.82,133.75,0.17]
[1719304859784,28.21,133.82,133.75,0.34]
[1719304860290,100.0,133.81,133.74,15.9524]
[1719304860590,28.21,133.82,133.74,15.9524]
[1719304860791,28.21,133.82,133.75,0.34]
[1719304861086,100.0,133.81,133.75,0.34]
[1719304861288,100.0,133.79,133.74,15.1656]
[1719304863474,100.0,133.79,133.72,21.4117]
[1719304863669,20.0,133.78,133.72,21.4117]
[1719304864274,39.65216082,133.82,133.72,21.4117]
[1719304864476,7.73818109,133.83,133.72,21.4117]
[1719304864777,20.0,133.82,133.72,21.4117]
[1719304864991,7.4722,133.83,133.73,0.34]
[1719304865507,135.6818,133.84,133.73,0.34]
[1719304865676,28.21,133.84,133.74,21.2944]
[1719304866182,7.4736,133.81,133.74,21.2944]
[1719304867073,7.4729,133.82,133.74,21.2944]
[1719304867273,20.0,133.81,133.74,21.2944]
[1719304868175,120.0,133.81,133.74,21.2944]
[1719304868376,7.4745,133.79,133.73,16.1613]
[1719304868578,20.0,133.78,133.73,16.1613]
[1719304869393,120.0,133.78,133.73,16.1613]
[1719304869898,20.0,133.78,133.73,16.1613]
[1719304870591,120.0,133.78,133.69,22.949]
[1719304873876,27.4773,133.74,133.65,22.1438]
[1719304874074,111.29071082,133.78,133.63,384.7]
[1719304874075,100.0,133.81,133.68,6.5574]
[1719304874302,7.4746,133.79,133.69,15.952]
[1719304874610,20.0,133.78,133.7,0.17]
[1719304875474,27.475,133.78,133.7,0.17]
[1719304875680,107.4765,133.76,133.64,21.8349]
[1719304875994,20.0,133.75,133.64,21.8349]
[1719304877307,27.4767,133.75,133.65,20.0]
[1719304877598,20.0,133.75,133.65,20.0]
[1719304877815,28.21,133.77,133.65,20.0]
[1719304878000,11.29071082,133.78,133.67,21.5116]
[1719304878783,18.76581082,133.78,133.68,0.34]
[1719304878983,11.29071082,133.78,133.68,0.34]
[1719304879193,11.29071082,133.78,133.69,21.3876]
[1719304879403,11.29071082,133.78,133.7,0.34]
[1719304880795,43.43437878,133.8,133.7,0.34]
[1719304880796,7.75037878,133.8,133.72,6.5427]
[1719304881001,11.29071082,133.83,133.74,16.619]
[1719304881306,11.29071082,133.83,133.75,0.34]
[1719304881496,15.2209654,133.86,133.76,6.6128]
[1719304881698,15.2209654,133.86,133.77,0.17]
[1719304881886,15.2209654,133.86,133.77,0.34]
[1719304882082,15.2209654,133.86,133.74,16.619]
[1719304882083,35.6818,133.84,133.75,6.436]
[1719304882293,100.0,133.83,133.75,6.436]
[1719304882499,118.76291082,133.83,133.76,0.17]
[1719304883208,118.76291082,133.83,133.75,6.436]
[1719304883407,100.0,133.81,133.75,6.436]
[1719304884420,120.0,133.8,133.67,22.3468]
[1719304884623,100.0,133.79,133.67,22.3468]
[1719304885205,112.30131637,133.79,133.67,22.3468]
[1719304885826,7.4749,133.78,133.68,0.17]
[1719304886119,7.4749,133.78,133.68,0.34]
[1719304886620,100.0,133.75,133.67,22.3468]
[1719304886832,40.51131637,133.78,133.67,22.3468]
[1719304886833,107.4755,133.77,133.67,22.3468]
[1719304887820,100.0,133.77,133.68,0.17]
[1719304888139,100.0,133.77,133.68,0.34]
[1719304888342,100.0,133.77,133.67,22.3468]
[1719304888503,107.4756,133.77,133.67,22.3468]
[1719304888706,7.4755,133.77,133.67,22.3468]
[1719304889202,47.98641637,133.78,133.67,22.3468]
[1719304889706,47.98641637,133.78,133.68,0.34]
[1719304890101,47.98641637,133.78,133.68,0.17]
[1719304890412,100.0,133.75,133.64,22.9398]
[1719304891101,7.4774,133.74,133.64,22.9398]
[1719304891604,128.21,133.75,133.64,22.9398]
[1719304891819,7.4777,133.73,133.64,22.9398]
[1719304892021,48.23965345,133.75,133.65,15.3768]
[1719304892208,7.4761,133.76,133.66,6.1761]
[1719304892403,40.51131637,133.78,133.67,15.3768]
[1719304892609,7.4756,133.77,133.67,15.3768]
[1719304893010,47.98641637,133.78,133.67,15.3768]
[1719304893231,47.98641637,133.78,133.68,0.34]
[1719304894543,40.51131637,133.78,133.69,6.3927]
[1719304894838,40.51131637,133.78,133.7,0.34]
[1719304895413,7.4757,133.77,133.67,400.0768]
[1719304895612,20.0,133.76,133.67,400.0768]
[1719304895811,7.4759,133.77,133.67,400.0768]
[1719304896045,143.41290437,133.78,133.67,400.0768]
[1719304896332,43.41290437,133.78,133.67,400.0768]
[1719304896545,20.0,133.77,133.67,400.0768]
[1719304896924,7.4761,133.76,133.67,400.0768]
[1719304897127,20.0,133.75,133.67,400.0768]
[1719304897446,27.4767,133.75,133.67,400.0768]
[1719304897755,20.0,133.75,133.67,400.0768]
[1719304899028,20.0,133.75,133.67,15.3768]
[1719304899412,20.0,133.75,133.68,0.34]
[1719304899629,27.4767,133.75,133.68,0.34]
[1719304900509,20.0,133.75,133.68,0.34]
[1719304900714,20.0,133.76,133.68,0.34]
[1719304901136,7.72913329,133.8,133.7,15.478]
[1719304901335,128.21,133.81,133.71,0.34]
[1719304902217,7.474,133.8,133.71,0.34]
[1719304902621,128.21,133.81,133.71,0.34]
[1719304902927,20.0,133.8,133.71,0.34]
[1719304903119,20.0,133.8,133.72,6.6331]
[1719304903317,20.0,133.8,133.73,0.34]
[1719304904225,11.61737193,133.81,133.74,16.5054]
[1719304904547,11.61737193,133.81,133.75,0.34]
[1719304905122,35.93936257,133.84,133.75,0.34]
[1719304905332,20.0,133.83,133.75,0.34]
[1719304905521,28.21,133.84,133.75,0.34]
[1719304906421,28.21,133.84,133.76,6.3902]
[1719304906639,28.21,133.84,133.77,0.34]
[1719304906837,28.21,133.84,133.78,15.1222]
[1719304907013,11.61737193,133.85,133.78,15.1222]
[1719304907219,11.61737193,133.85,133.79,0.34]
[1719304907547,28.21,133.87,133.79,0.34]
[1719304908420,35.6799,133.87,133.79,0.34]
[1719304908826,28.21,133.87,133.79,0.34]
[1719304911516,11.61737193,133.88,133.79,0.34]
[1719304911720,20.0,133.87,133.79,0.34]
[1719304911929,20.0,133.87,133.8,6.3166]
[1719304912142,20.0,133.87,133.81,0.34]
[1719304913220,27.4699,133.87,133.81,0.34]
[1719304913451,27.4699,133.87,133.8,6.3166]
[1719304913738,7.4708,133.86,133.8,6.3166]
[1719304914955,20.0,133.87,133.8,6.3166]
[1719304915133,27.4699,133.87,133.8,6.3166]
[1719304915336,7.4705,133.86,133.8,6.3166]
[1719304915648,27.4702,133.87,133.8,6.3166]
[1719304916255,20.0,133.87,133.8,6.3166]
[1719304917449,35.6812,133.85,133.78,15.1222]
[1719304917655,100.0,133.84,133.78,15.1222]
[1719304917866,7.4732,133.82,133.78,15.1222]
[1719304918049,28.21,133.82,133.78,15.1222]
[1719304918246,35.6828,133.82,133.78,15.1222]
[1719304918673,20.0,133.81,133.78,15.1222]
[1719304920456,20.0,133.81,133.77,6.3426]
[1719304920658,20.0,133.81,133.75,16.452]
[1719304922770,100.0,133.8,133.75,16.452]
[1719304922970,48.21,133.79,133.75,16.452]
[1719304926876,28.21,133.76,133.71,16.2122]
[1719304927050,20.0,133.75,133.71,16.2122]
[1719304927253,100.0,133.74,133.68,16.493]
[1719304927471,20.0,133.73,133.68,16.493]
[1719304930182,27.4778,133.73,133.68,16.493]
[1719304930391,55.6878,133.73,133.68,16.493]
[1719304930601,55.6878,133.73,133.65,15.7547]
[1719304930602,7.4793,133.71,133.65,15.7547]
[1719304930803,107.4785,133.72,133.65,15.7547]
[1719304931100,20.0,133.7,133.65,15.7547]
[1719304931671,20.0,133.71,133.65,15.7547]
[1719304932606,100.0,133.7,133.65,15.7547]
[1719304932786,20.0,133.69,133.65,15.7547]
[1719304933875,28.21,133.73,133.65,15.7547]
[1719304934071,20.0,133.72,133.66,0.34]
[1719304935973,20.0,133.74,133.66,0.34]
[1719304936174,27.74386529,133.75,133.66,0.34]
[1719304936580,35.22046529,133.75,133.66,0.34]
[1719304937597,27.74386529,133.75,133.66,0.34]
[1719304939675,20.0,133.75,133.66,0.34]
[1719304939876,20.0,133.76,133.66,0.87558368]
[1719304940196,20.0,133.76,133.68,16.4319]
[1719304940377,6.6131,133.82,133.7,6.5414]
[1719304940577,20.0,133.81,133.71,0.34]
[1719304940777,27.4736,133.81,133.71,1.83517963]
[1719304941014,27.4736,133.81,133.71,0.34]
[1719304941195,7.474,133.8,133.71,0.34]
[1719304942084,7.4745,133.79,133.71,0.34]
[1719304942600,20.0,133.78,133.71,0.34]
[1719304942802,20.0,133.79,133.71,0.34]
[1719304942980,20.0,133.81,133.71,0.34]
[1719304943889,27.4733,133.81,133.71,0.34]
[1719304944303,100.0,133.8,133.71,0.34]
[1719304944481,20.0,133.79,133.71,0.34]
[1719304945610,20.0,133.81,133.72,15.1558]
[1719304945823,20.0,133.81,133.73,0.34]
[1719304946105,20.0,133.81,133.74,6.3988]
[1719304946487,20.0,133.81,133.75,0.34]
[1719304948294,28.21,133.82,133.76,15.7115]
[1719304948520,15.1558,133.9,133.76,15.7115]
[1719304948521,145.25737243,133.91,133.77,51.7188]
[1719304948814,28.21,133.9,133.78,15.7115]
[1719304949102,28.21,133.9,133.79,0.34]
[1719304949303,28.21,133.9,133.79,1.1131106]
[1719304950504,100.0,133.9,133.79,0.34]
[1719304950699,107.4688,133.9,133.79,0.34]
[1719304950905,111.06086561,133.9,133.79,0.34]
[1719304951079,118.52926561,133.9,133.79,0.34]
[1719304951284,20.0,133.89,133.79,0.34]
[1719304954111,20.0,133.89,133.8,23.1288]
[1719304954296,20.0,133.89,133.81,0.34]
[1719304954906,48.21,133.9,133.81,0.34]
[1719304957390,20.0,133.9,133.81,0.34]
[1719304957700,20.0,133.92,133.81,0.34]
[1719304958599,20.0,133.92,133.82,22.6433]
[1719304958911,20.0,133.92,133.83,0.34]
[1719304959496,20.0,133.92,133.83,20.34]
[1719304959696,20.0,133.93,133.83,20.34]
[1719304964011,120.0,133.93,133.83,20.34]
[1719304964697,20.0,133.93,133.83,20.34]
[1719304966592,128.21,133.92,133.82,22.6433]
[1719304966810,20.0,133.91,133.82,22.6433]
[1719304967019,100.0,133.9,133.82,22.6433]
[1719304967318,20.0,133.89,133.82,22.6433]
[1719304968319,20.0,133.89,133.83,0.34]
[1719304968894,20.0,133.91,133.83,0.34]
[1719304970115,100.0,133.9,133.82,22.6433]
[1719304970302,20.0,133.89,133.82,22.6433]
[1719304971317,20.0,133.89,133.83,0.17]
[1719304971504,20.0,133.89,133.83,0.34]
[1719304974932,100.0,133.88,133.82,22.6433]
[1719304976032,20.0,133.87,133.82,22.6433]
[1719304979632,20.0,133.87,133.82,16.2041]
[1719304984939,20.0,133.89,133.83,0.34]
[1719304985134,20.0,133.9,133.83,0.34]
[1719304985333,100.0,133.9,133.83,0.34]
[1719304985536,122.5653,133.97,133.85,16.4882]
[1719304985733,122.5653,133.97,133.86,0.34]
[1719304985947,151.11449933,133.97,133.86,0.34]
[1719304986342,136.01349933,133.97,133.86,0.34]
[1719304987334,20.0,133.96,133.86,0.34]
[1719304987730,20.0,133.96,133.87,6.0442]
[1719304988049,28.21,133.97,133.89,16.6089]
[1719304988347,10.44531561,133.99,133.9,0.34]
[1719304988544,7.8054812,133.99,133.9,0.34]
[1719304988750,135.6725,134.01,133.9,0.34]
[1719304989128,7.4626,134.0,133.9,0.34]
[1719304989327,100.0,133.99,133.9,0.34]
[1719304989844,20.0,133.98,133.9,0.34]
[1719304990927,100.0,133.97,133.9,0.34]
[1719304991127,20.0,133.96,133.9,0.34]
[1719304991329,20.0,133.98,133.9,0.34]
[1719304991536,48.21,133.98,133.9,0.34]
[1719304991825,48.21,133.98,133.9,0.17]
[1719304992046,100.0,133.97,133.89,16.6089]
[1719304992252,20.0,133.96,133.89,16.6089]
[1719304992830,20.0,133.97,133.89,16.6089]
[1719304993564,20.0,133.97,133.9,0.34]
[1719304995651,20.0,133.98,133.91,6.028]
[1719304995951,20.0,133.98,133.92,0.34]
[1719304996339,20.0,134.0,133.92,0.34]
[1719304998642,20.0,134.0,133.93,15.0726]
[1719304998846,10.44531561,134.02,133.94,0.34]
[1719304999061,20.0,134.01,133.94,0.34]
[1719305005965,10.44531561,134.02,133.94,0.34]
[1719305007361,10.44531561,134.02,133.95,6.5605]
[1719305007945,10.44531561,134.02,133.96,0.17]
[1719305008156,36.01368224,134.04,133.96,0.34]
[1719305008650,9.37,134.02,133.97,24.5921]
[1719305008855,9.37,134.02,133.98,0.34]
[1719305009063,9.37,134.0,133.97,15.2221]
[1719305009561,9.37,134.01,133.97,15.2221]
[1719305009956,9.37,134.0,133.97,15.2221]
[1719305010467,100.0,134.04,133.98,0.17]
[1719305010667,100.0,134.04,133.98,0.34]
[1719305012979,100.0,134.04,133.97,15.2221]
[1719305014870,100.0,134.04,133.98,0.17]
[1719305015077,100.0,134.04,133.98,0.34]
[1719305015565,46.36424309,134.06,133.98,0.34]
[1719305015765,20.0,134.05,133.98,0.34]
[1719305019554,30.44531561,134.05,133.98,0.34]
[1719305020761,20.0,134.05,133.98,0.34]
[1719305021681,20.0,134.05,133.99,6.1923]
[1719305021982,20.0,134.05,134.0,0.34]
[1719305023280,28.12,134.06,134.0,0.34]
[1719305023955,35.91501859,134.08,134.01,15.8056]
[1719305024156,20.0,134.07,134.01,15.8056]
[1719305024372,28.12,134.08,134.01,15.8056]
[1719305024956,28.12,134.08,134.02,0.34]
[1719305027056,107.79569394,134.1,134.03,6.4255]
[1719305027255,100.0,134.1,134.04,0.34]
[1719305028874,100.0,134.13,134.05,15.7853]
[1719305029083,20.0,134.12,134.05,15.7853]
[1719305029671,100.0,134.11,134.05,15.7853]
[1719305030764,9.36,134.07,134.05,15.7853]
[1719305031178,9.36,134.06,134.05,15.7853]
[1719305031364,9.36,134.06,134.03,6.4255]
[1719305031565,9.36,134.04,134.03,6.4255]
[1719305032165,100.0,134.09,134.03,6.4255]
[1719305032363,9.36,134.05,134.03,6.4255]
[1719305033466,9.36,134.04,134.03,6.4255]
[1719305036583,20.0,134.08,134.03,6.4255]
[1719305036891,9.36,134.05,134.03,6.4255]
[1719305037569,9.36,134.05,134.04,0.34]
[1719305037771,20.0,134.1,134.04,0.34]
[1719305037978,20.0,134.11,134.04,0.34]
[1719305038182,9.36,134.06,134.04,0.34]
[1719305038366,20.0,134.11,134.04,0.34]
[1719305038569,9.36,134.08,134.04,0.34]
[1719305040389,9.36,134.07,134.04,0.34]
[1719305045374,9.36,134.04,134.03,6.4255]
[1719305046101,9.36,134.04,134.02,16.4792]
[1719305046290,9.36,134.03,133.99,22.1242]
[1719305046473,9.36,134.01,133.99,22.1242]
[1719305047072,9.36,134.0,133.95,22.9088]
[1719305047294,9.36,133.99,133.95,22.9088]
[1719305048277,9.36,134.0,133.95,22.9088]
[1719305048492,9.36,134.0,133.96,0.34]
[1719305048698,144.8999,134.05,133.96,0.34]
[1719305048875,9.36,134.0,133.96,0.34]
[1719305049274,20.0,134.04,133.95,22.9088]
[1719305049693,9.36,134.0,133.95,22.9088]
[1719305050595,9.36,134.0,133.96,0.34]
[1719305050790,9.36,133.99,133.96,0.34]
[1719305050998,20.0,134.04,133.96,0.34]
[1719305051209,9.36,133.99,133.96,0.34]
[1719305051911,9.36,133.99,133.96,0.17]
[1719305052087,9.36,133.97,133.95,22.9088]
[1719305052405,9.36,133.96,133.95,22.9088]
[1719305053586,9.36,133.96,133.92,22.1431]
[1719305053883,9.36,133.94,133.92,22.1431]
[1719305054294,37.44,133.98,133.92,22.1431]
[1719305054295,9.36,133.93,133.92,15.9665]
[1719305054605,9.36,133.93,133.89,391.2893]
[1719305054808,137.44,133.98,133.89,391.2893]
[1719305055109,9.36,133.92,133.89,391.2893]
[1719305055812,9.36,133.93,133.89,391.2893]
[1719305056711,9.36,133.93,133.9,0.17]
[1719305057386,9.36,133.93,133.9,0.34]
[1719305057814,107.7953138,133.98,133.9,0.34]
[1719305057990,9.36,133.93,133.9,0.34]
[1719305060713,9.36,133.92,133.9,0.34]
[1719305062612,9.36,133.91,133.9,0.34]
[1719305062810,9.36,133.92,133.9,0.34]
[1719305066417,107.7953138,133.98,133.9,0.34]
[1719305066721,9.36,133.94,133.9,0.34]
[1719305066921,100.0,134.0,133.9,0.34]
[1719305067102,9.36,133.95,133.9,9.7]
[1719305067707,37.44,133.98,133.9,9.7]
[1719305067901,7.79349642,134.0,133.91,20.0]
[1719305068101,9.36,133.96,133.92,0.34]
[1719305068307,18.23812955,134.01,133.92,0.34]
[1719305068521,9.36,133.96,133.92,0.34]
[1719305069604,10.44531561,134.01,133.92,0.34]
[1719305069806,9.36,133.96,133.92,0.34]
[1719305070726,9.36,133.97,133.92,0.34]
[1719305071107,9.36,133.96,133.92,0.34]
[1719305076931,9.36,133.97,133.92,0.34]
[1719305078213,9.36,133.96,133.92,0.34]
[1719305078717,20.0,134.0,133.92,0.34]
[1719305078916,9.36,133.96,133.92,0.34]
[1719305079115,9.36,133.97,133.92,0.34]
[1719305079323,9.36,133.97,133.92,9.7]
[1719305081322,20.0,134.0,133.92,9.7]
[1719305081527,20.0,134.0,133.93,25.2796]
[1719305081820,9.36,134.0,133.95,6.6427]
[1719305082028,14.18905994,134.04,133.95,16.0027]